Cogmind - Beta 9.6 @@@ ROGUE MODE // 2020.07.19 @ 17:00:09 // Winter2019/RPGLIKE Player: Hermelin Result: Destroyed by G-67 Veteran with Plasma Rifle Performance ------------- Evolutions (5) 2500 Regions Visited (21) 4200 Robots Destroyed (639) 3195 Value Destroyed (23924) 23924 Prototype IDs (72) 1440 Alien Tech Used (0) 0 Bonus (16079) 16079 TOTAL SCORE: 51338 Bonus ------- Triggered High Security 500 High Alert Combat Kills 8610 Follower Combat Kills 725 Network Hubs Disabled 800 Aligned with FarCom 300 Met Imprinter 300 Triggered Deep Caves Wall 1000 Exposed GOLEM Chamber 3500 A7 Reached Mainframe 300 Met R17 at Cetus 500 Friendly Fire -456 Cogmind --------- Core Integrity 0/1750 Matter 260/350 Energy 4/1350 System Corruption 0% Temperature Cool (21) Movement Walking (93) Location -5/Factory Parts ------- > --- POWER (2) -------- Quantum Reactor > --- PROPULSION (4) --- Enhanced Biometal Leg Assembled Alloy Leg Potential Leg Potential Leg > --- UTILITY (12) ----- Assembled Biocell Array Assembled Combat Suite Advanced Weapon Cycler Assembled Alloy Armor EM Dispersion Field Force Field Improved System Shield Mobile Refinery Mk. CCLXVII GOLEM Unit > --- WEAPON (5) ------- 8R-AWN's Boregun Molecular Deconstructor > --- INVENTORY (4) ---- Advanced Coolant Injector Peak State ------------ > --- POWER ------------ Quantum Reactor Quantum Reactor > --- PROPULSION ------- Enhanced Biometal Leg Enhanced Biometal Leg Potential Leg Potential Leg > --- UTILITY ---------- Experimental Heat Sink Advanced Coolant Injector Assembled Biocell Array Assembled Combat Suite Experimental Targeting Computer Advanced Weapon Cycler Centrium Medium Armor Plating Assembled Alloy Armor Powered Armor EM Dispersion Field Force Field Improved System Shield > --- WEAPON ----------- EMDS 8R-AWN's Boregun Molecular Deconstructor > --- INVENTORY -------- EM Dispersion Field Mobile Refinery Mk. CCLXVII GOLEM Unit [Rating: 193] Favorites ----------- Power Reinforced Fission Core Engine Heavy Deuterium Engine Power Core Reinforced Fission Core Reactor Quantum Reactor Propulsion Potential Leg Treads Light Treads Leg Potential Leg Wheel Armored Wheel Utility Experimental Heat Sink Device Experimental Heat Sink Storage Assembled Biocell Array Processor Experimental Targeting Computer Hackware Improved System Shield Protection Powered Armor Weapon 8R-AWN's Boregun Energy Gun Heavy EM Shotgun Energy Cannon Guided Plasma Cannon Ballistic Gun 8R-AWN's Boregun Launcher Heavy Rocket Launcher Special Weapon Molecular Deconstructor Impact Weapon Mace Slashing Weapon Ripper Build | -11 -10 -10 -9 -9 -9 -8 -8 -7 -7 -7 -7 -7 -7 -7 -6 -6 -6 -6 -6 -6 -5 ------- Run | Scr Mat Min Mat Min Exi Min Mat Fac Was Fac Low Low Zio Dee Pro Fac Ext Cet Arc Hub Fac Slots Evolved 19 | 3 3 2 2 . . 2 2 2 . 1 . . . . 1 . . . . 1 . Power 1 | . . . . . . 1 . . . . . . . . . . . . . . . Propulsion 3 | 1 . 1 . . . 1 . . . . . . . . . . . . . . . Utility 11 | 1 3 . 2 . . . 2 1 . 1 . . . . . . . . . 1 . Weapon 4 | 1 . 1 . . . . . 1 . . . . . . 1 . . . . . . Parts Attached 203 | 7 12 7 28 . 13 3 4 14 1 3 1 1 4 37 5 10 13 7 3 20 10 Power 23 | 1 1 . 3 . 1 1 1 4 . . . . . 3 . 1 2 2 . 2 1 Engine 7 | 1 . . 1 . . . 1 3 . . . . . . . . . . . 1 . Core 8 | . 1 . 2 . 1 1 . 1 . . . . . 1 . . 1 . . . . Reactor 8 | . . . . . . . . . . . . . . 2 . 1 1 2 . 1 1 Propulsion 25 | 2 2 3 4 . 3 1 . . . . . . . 4 2 . . . . 3 1 Treads 7 | . . 3 4 . . . . . . . . . . . . . . . . . . Leg 14 | . . . . . 3 1 . . . . . . . 4 2 . . . . 3 1 Wheel 4 | 2 2 . . . . . . . . . . . . . . . . . . . . Hover . | . . . . . . . . . . . . . . . . . . . . . . Flight . | . . . . . . . . . . . . . . . . . . . . . . Utility 112 | 2 6 2 15 . 6 1 3 6 1 3 . . 2 23 1 9 8 3 3 10 8 Device 59 | 1 1 2 2 . 5 . 2 1 1 2 . . 2 14 1 7 3 . 2 8 5 Storage 3 | . . . . . . . . . . . . . . 2 . 1 . . . . . Processor 10 | 1 3 . . . 1 . . . . 1 . . . 1 . . 2 1 . . . Hackware 4 | . . . 1 . . . . . . . . . . . . . 1 . 1 1 . Protection 36 | . 2 . 12 . . 1 1 5 . . . . . 6 . 1 2 2 . 1 3 Artifact . | . . . . . . . . . . . . . . . . . . . . . . Weapon 43 | 2 3 2 6 . 3 . . 4 . . 1 1 2 7 2 . 3 2 . 5 . Energy Gun 5 | 1 . . . . . . . 1 . . . . . 3 . . . . . . . Energy Cannon 6 | . . . . . 1 . . 1 . . 1 . . . 1 . 1 . . 1 . Ballistic Gun 19 | 1 3 1 4 . 2 . . . . . . 1 . . . . 1 2 . 4 . Ballistic Cannon . | . . . . . . . . . . . . . . . . . . . . . . Launcher 8 | . . 1 2 . . . . 2 . . . . 1 2 . . . . . . . Special Weapon 1 | . . . . . . . . . . . . . . . 1 . . . . . . Impact Weapon 1 | . . . . . . . . . . . . . 1 . . . . . . . . Slashing Weapon 3 | . . . . . . . . . . . . . . 2 . . 1 . . . . Piercing Weapon . | . . . . . . . . . . . . . . . . . . . . . . Special Melee Weapon . | . . . . . . . . . . . . . . . . . . . . . . Unidentified Prototypes 27 | . . . . . 6 . . 3 . . . . 1 8 1 . . 2 . 5 1 Parts Lost 4 | . . 1 . . . . . . . . . . . 2 . . . . . . 1 Power . | . . . . . . . . . . . . . . . . . . . . . . Propulsion . | . . . . . . . . . . . . . . . . . . . . . . Utility 4 | . . 1 . . . . . . . . . . . 2 . . . . . . 1 Weapon . | . . . . . . . . . . . . . . . . . . . . . . Highest Loss Streak 2 | . . 1 . . . . . . . . . . . 2 . . . . . . 1 Average Slot Usage (%) 97 | . 98 99 99 100 99 100 99 99 100 100 99 100 100 94 98 94 94 93 94 94 93 Engine 1 | . 5 . . . . . 3 4 5 4 4 4 4 . . . . . . . . Core 4 | . 6 8 7 7 7 11 6 5 5 4 4 4 4 3 4 2 . . . . . Reactor 2 | . . . . . . . . . . . . . . 3 4 5 8 8 9 7 8 Treads 4 | . . 20 22 21 16 . . . . . . . . . . . . . . . . Leg 14 | . . . . . 4 25 22 20 20 19 19 19 19 18 18 18 18 18 18 16 16 Wheel 1 | . 24 2 . . . . . . . . . . . . . . . . . . . Device 20 | . 4 7 3 7 10 18 24 27 30 27 28 28 28 24 27 26 28 24 21 21 26 Storage 1 | . . . . . . . . . . . . . . 2 4 4 4 4 4 4 4 Processor 9 | . 20 26 17 7 7 6 5 5 5 9 9 9 9 7 9 9 5 4 4 4 3 Hackware 1 | . . . 3 . . . . . . . . . . . . . . 4 4 7 4 Protection 14 | . 12 9 21 35 31 18 16 17 15 14 14 14 14 10 9 9 9 9 13 13 12 Energy Cannon 2 | . . . . . 2 6 5 3 5 4 3 4 4 4 3 4 3 4 4 . . Ballistic Gun 11 | . 24 18 14 14 13 12 11 10 10 9 9 9 9 9 9 9 9 8 9 12 12 Launcher 2 | . . 3 6 7 4 . . 3 5 4 4 4 3 2 . . . . . . . Special Weapon 1 | . . . . . . . . . . . . . . . . 4 4 4 4 4 4 Naked Turns . | . . . . . . . . . . . . . . . . . . . . . . Heaviest Build 118 | 8 15 16 46 46 64 69 67 104 104 106 106 106 111 118 88 88 77 99 99 100 106 Greatest Support 139 | 37 37 65 65 65 95 125 95 125 125 125 125 125 125 139 125 125 95 125 125 125 125 Greatest Overweight (x) 5 | . . . . . 5 . . . . . . . . . 1 . . 1 . 1 1 Average Overweight (x) . | . . . . . . . . . . . . . . . . . . . . . . Largest Inventory Capacity 4 | 2 2 2 3 3 3 3 3 3 3 3 3 3 3 4 4 4 4 4 4 4 4 Average Capacity 3 | 1 2 2 2 3 3 3 3 3 3 3 3 3 3 3 4 4 4 4 4 4 4 Most Carried 4 | 2 2 2 3 3 3 3 3 3 3 3 3 3 3 4 4 4 4 4 4 4 4 Average Carried 3 | 1 2 1 2 3 2 2 2 2 3 2 2 3 3 3 4 3 4 3 3 3 3 Final Capacity 4 | 2 2 2 3 3 3 3 3 3 3 3 3 3 3 4 4 4 4 4 4 4 4 Final Carried 4 | 2 2 2 3 3 3 3 3 3 3 3 3 3 3 4 4 4 4 4 4 4 1 Class Distribution -------------------- 63% | Scavenger-Mutant 16% | Scavenger-Tank 11% | Mutant 6% | Scavenger-Gunner Dominant Class ---------------- Mutant | -10/Materials Mutant | -10/Mines Scavenger-Mutant | -9/Materials Scavenger-Mutant | -9/Mines Scavenger-Mutant | -9/Exiles Scavenger-Mutant | -8/Mines Scavenger-Mutant | -8/Materials Scavenger-Mutant | -7/Factory Scavenger-Mutant | -7/Waste Scavenger-Mutant | -7/Factory Scavenger-Mutant | -7/Lower Caves Scavenger-Mutant | -7/Lower Caves Scavenger-Mutant | -7/Zion Scavenger-Mutant | -7/Deep Caves Scavenger-Gunner | -6/Proximity Caves Scavenger-Mutant | -6/Factory Scavenger-Mutant | -6/Extension Scavenger-Mutant | -6/Cetus Scavenger-Tank | -6/Archives Scavenger-Tank | -6/Hub_04(d) Scavenger-Mutant | -5/Factory Resources | -11 -10 -10 -9 -9 -9 -8 -8 -7 -7 -7 -7 -7 -7 -7 -6 -6 -6 -6 -6 -6 -5 ----------- Run | Scr Mat Min Mat Min Exi Min Mat Fac Was Fac Low Low Zio Dee Pro Fac Ext Cet Arc Hub Fac Matter Collected 15827 | 276 713 396 861 63 322 306 592 1922 . 632 322 171 714 908 600 1351 1206 332 213 2482 1445 Remotely 2032 | . . 204 . . . . . . . 550 309 171 704 94 . . . . . . . Salvage Created 29749 | 30 979 313 1360 163 324 529 2162 3391 . 752 907 105 1022 1538 882 3657 1934 726 549 6076 2350 Parts 1733 | 4 81 28 88 11 15 22 113 235 9 40 23 6 80 75 78 206 137 46 41 255 140 Haulers Intercepted 22 | . 2 . 5 . . . 5 4 . . . . . . . 1 . . . 5 . Recyclers Shooed 5 | 1 1 . 1 . . . . . . . . . . . . 1 . . . . 1 Parts Field Recycled . | . . . . . . . . . . . . . . . . . . . . . . Retrieved Matter . | . . . . . . . . . . . . . . . . . . . . . . Parts Self-Destructed 86 | . . . . . . . . . . . 24 10 . . 52 . . . . . . Prevented . | . . . . . . . . . . . . . . . . . . . . . . Kills | -11 -10 -10 -9 -9 -9 -8 -8 -7 -7 -7 -7 -7 -7 -7 -6 -6 -6 -6 -6 -6 -5 ------- Run | Scr Mat Min Mat Min Exi Min Mat Fac Was Fac Low Low Zio Dee Pro Fac Ext Cet Arc Hub Fac Combat Hostiles Destroyed 452 | . 24 15 23 5 7 8 35 63 2 15 14 3 11 22 19 44 34 10 4 59 35 Melee 10 | . . . . . . . . . . . . . . 9 . . . . . . 1 Guns 361 | . 24 15 23 5 . 4 17 56 2 7 7 2 7 10 18 38 28 8 . 56 34 Cannons 44 | . . . . . 1 3 17 2 . 8 3 . . 1 1 4 2 2 . . . AOE 21 | . . . . . 6 1 1 3 . . 3 1 4 2 . . . . . . . Classes Destroyed 28 | 1 8 . 2 . 1 1 1 2 1 . 1 . 3 3 1 1 2 . . . . Worker 41 | . 1 . . . . . 3 3 . . . . . . . 12 . . . 17 5 Builder 17 | . 1 . . . . . . 7 . . . . . . . 4 1 . . 3 1 Tunneler 5 | 1 . 1 . . . . . . . . . . . . . . . . . 3 . Hauler 22 | . 2 . 5 . . . 5 4 . . . . . . . 1 . . . 5 . Recycler 13 | . 1 . . . . . 1 1 . . . . . . . 4 2 . . 3 1 Mechanic 4 | . . . . . . . . . . . . . . . . 1 . . . 2 1 Operator 29 | . 2 . 3 . . . 3 3 . 1 . . . . . 2 1 . 9 3 2 Watcher 31 | . 3 . 2 . . . 3 5 . 2 . . . . . 4 3 1 . 5 3 Swarmer 70 | . 12 12 4 3 . . 9 9 . 8 3 . . . . 2 3 2 . 3 . Saboteur 3 | . . . . . . . . . . . . . . . . . 1 . . 1 1 Grunt 186 | . 12 3 12 1 . 6 18 32 1 5 5 2 . . 6 24 10 2 . 24 23 Brawler 15 | . . . . . . . 1 3 . . 2 1 . . . 1 1 . . 2 4 Duelist 15 | . . . 2 1 . . 1 3 . . . . . . 2 1 3 . . . 2 Protector 6 | . . . . . . . . 2 . . . . . . . . . . . 3 1 Sentry 51 | . . . 5 . . . 6 5 . . 1 . . . 1 8 10 . 4 9 2 Demolisher 1 | . . . . . . . . . . . . . . . . . 1 . . . . Hunter 18 | . . . . . . 2 . 4 . . 1 . . . 2 5 1 1 . . 2 Programmer 15 | . . . . . . . . 5 . 2 . . . . 1 2 . 1 . 4 . Behemoth 5 | . . . . . . . . . . . . . . . 1 1 2 . . 1 . Compactor 1 | . . . . . . . . . 1 . . . . . . . . . . . . Cetus Guard 4 | . . . . . . . . . . . . . . . . . . 4 . . . Lightning 12 | . . . . . . . . . . . . . . . . . . . . 12 . Zionite 22 | . . . . . . . . . . . . . 22 . . . . . . . . Z-Light 9 | . . . . . . . . . . . . . . 9 . . . . . . . Master Thief 8 | . . . . . . . . . . . 2 . . . 6 . . . . . . Assembler 2 | . . . . . . . . . . . . . . 2 . . . . . . . Assembled 9 | . . . . . 6 . . . . . . . . 3 . . . . . . . Golem 10 | . . . . . . . . . . . . . . 10 . . . . . . . Wasp 1 | . . . . . . . . . . . . . 1 . . . . . . . . Thug 4 | . . . . . . . . . . . . . 2 . . . 2 . . . . Guerrilla 1 | . . . . . . . . . . . . . . . . . . 1 . . . Fireman 1 | . . . . . . . . . . . . . 1 . . . . . . . . Mutant 6 | . . . . . . . . . . . . . 6 . . . . . . . . Best Kill Streak 38 | 1 9 5 3 3 6 3 8 9 1 5 7 3 8 6 11 38 13 6 3 14 24 Combat Bots Only 23 | . 4 3 3 3 6 3 5 8 1 5 7 3 7 6 11 21 11 5 1 11 23 Max Kills in Single Turn 5 | 1 2 2 1 2 3 1 2 4 1 1 3 1 5 3 2 3 2 2 1 3 2 Gunslinging 1 | . 1 1 . 1 . . 1 1 . . . . . 1 1 . 1 . . 1 1 Exploded 4 | . . . . . 3 1 1 2 . . 3 1 4 2 . . . . . . . Melee 1 | . . . . . . . . . . . . . . 1 . . . . . . 1 Uniques/NPCs Destroyed 2 | . . . . . 1 . . . . . . . 1 . . . . . . . . 8R-AWN (-9/Exiles) Imprinter (-7/Zion) Combat | -11 -10 -10 -9 -9 -9 -8 -8 -7 -7 -7 -7 -7 -7 -7 -6 -6 -6 -6 -6 -6 -5 -------- Run | Scr Mat Min Mat Min Exi Min Mat Fac Was Fac Low Low Zio Dee Pro Fac Ext Cet Arc Hub Fac Damage Taken 16207 | . 833 950 511 114 903 169 352 1049 . 198 337 129 631 2074 479 1098 962 345 250 1346 3477 Core 10179 | . 597 714 342 66 523 113 242 638 . 121 193 66 341 1062 309 688 634 232 158 852 2288 Absorbed by Shields 5176 | . . . 7 46 330 61 136 401 . 78 134 48 243 719 179 430 380 132 93 934 825 Redirected to Core 9171 | . 414 595 294 63 511 113 218 544 . 121 193 66 311 884 287 632 583 214 158 819 2151 Core Remaining (%) 76 | 100 . 44 . . . 26 93 . . . . . . . 100 . . . . 98 . Volleys Fired 1415 | 2 78 56 66 11 65 24 92 163 24 36 40 16 68 66 56 125 88 30 39 157 113 Largest 4 | 2 2 3 2 2 2 2 2 4 2 2 3 2 3 2 3 3 3 2 1 4 3 Hottest 149 | 60 46 66 46 46 120 120 120 149 120 120 120 60 120 120 120 120 120 120 120 95 95 Shots Fired 2744 | 4 155 119 128 21 108 39 137 319 43 56 56 26 123 105 149 230 168 48 38 423 249 Gun 2407 | 4 155 119 128 21 86 30 92 305 38 40 27 26 104 82 143 186 146 38 . 388 249 Cannon 212 | . . . . . 19 9 45 7 5 16 25 . 16 22 6 23 9 6 4 . . Launcher 18 | . . . . . 3 . . 7 . . 4 . 3 1 . . . . . . . Special 107 | . . . . . . . . . . . . . . . . 21 13 4 34 35 . Kinetic 2341 | 2 155 119 128 21 86 30 92 289 38 40 27 26 104 82 95 186 146 38 . 388 249 Thermal 212 | . . . . . 19 9 45 7 5 16 25 . 16 22 6 23 9 6 4 . . Explosive 15 | . . . . . 3 . . 4 . . 4 . 3 1 . . . . . . . Electromagnetic 21 | 2 . . . . . . . 19 . . . . . . . . . . . . . Phasic 48 | . . . . . . . . . . . . . . . 48 . . . . . . Robot Hit Streak 38 | 4 11 9 28 9 38 8 13 16 15 22 21 6 15 25 10 24 15 16 26 26 13 Robot Miss Streak 7 | . 6 7 2 2 1 2 3 4 5 2 3 2 3 2 3 4 3 1 3 4 4 Penetration Max 2 | . . . . . . . 2 2 1 1 1 1 2 2 . 2 1 1 . 2 2 Secondary Targets 63 | . 8 3 . 2 . 1 2 4 . 1 1 1 4 2 5 2 6 2 . 11 8 Max Gunslinging Chain 1 | . 1 1 . 1 . 1 1 1 . 1 1 1 1 1 1 1 1 1 . 1 1 Shots Hit Robots 1894 | 4 88 61 97 15 86 22 75 216 34 42 41 18 84 123 100 155 127 34 31 274 167 Core Hits 1082 | 2 40 20 49 6 34 12 57 136 8 24 29 7 52 109 40 112 70 22 1 161 91 Critical Hits 766 | . 2 . . . 3 10 37 133 25 12 8 4 40 37 22 107 68 17 . 143 98 Critical Kills 285 | . 2 . . . 1 4 18 57 2 7 3 . 12 12 7 44 23 8 . 51 34 Critical Parts Destroyed 397 | . . . . . . 6 18 72 6 5 4 4 26 14 9 53 38 4 . 83 55 Melee Attacks 60 | . . . . . . . . . . . . . 1 59 . . . . . . . Impact 1 | . . . . . . . . . . . . . 1 . . . . . . . . Slashing 59 | . . . . . . . . . . . . . . 59 . . . . . . . Piercing . | . . . . . . . . . . . . . . . . . . . . . . Sneak Attacks 1 | . . . . . . . . . . . . . . 1 . . . . . . . Combat Hostiles . | . . . . . . . . . . . . . . . . . . . . . . Follow-up Attacks . | . . . . . . . . . . . . . . . . . . . . . . Damage Inflicted 51113 | 52 1364 811 1476 225 2213 555 2810 5866 1003 1111 1684 374 2869 5498 2319 4652 2709 827 153 8208 4334 Guns 36461 | 52 1350 811 1472 225 1200 314 1275 4774 823 525 425 374 1442 1027 2093 3722 2410 599 . 7360 4188 Cannons 7349 | . . . . . 652 209 1535 252 180 578 878 . 534 768 226 857 299 228 153 . . Explosions 4893 | . . . . . 361 32 . 797 . . 381 . 893 1378 . 73 . . . 832 146 Melee 2325 | . . . . . . . . . . . . . . 2325 . . . . . . . Ramming 85 | . 14 . 4 . . . . 43 . 8 . . . . . . . . . 16 . Kinetic 34988 | 25 1350 811 1472 225 1200 314 1275 4450 823 525 425 374 1442 1027 971 3722 2410 599 . 7360 4188 Thermal 7671 | . . . . . 652 241 1535 323 180 578 878 . 534 768 226 930 299 228 153 . 146 Explosive 3516 | . . . . . 361 . . 503 . . 381 . 893 1378 . . . . . . . Electromagnetic 1406 | 27 . . . . . . . 547 . . . . . . . . . . . 832 . Impact . | . . . . . . . . . . . . . . . . . . . . . . Slashing 2325 | . . . . . . . . . . . . . . 2325 . . . . . . . Piercing . | . . . . . . . . . . . . . . . . . . . . . . Phasic 1122 | . . . . . . . . . . . . . . . 1122 . . . . . . Highest Corruption 21 | . 4 4 1 1 1 1 . 3 20 21 21 21 21 1 1 3 3 3 3 9 . Average Corruption 4 | . 2 4 1 1 1 1 . 1 14 20 21 21 2 1 1 2 3 3 2 7 . Corruption Purged 3 | . . . . . . . . . . . . . . . . . . . 3 . . Effects 365 | . 14 23 1 1 6 2 . 21 19 65 57 25 4 11 8 20 35 11 10 32 . Message Errors 77 | . 5 9 . . . 1 . 7 2 12 9 2 1 5 3 3 8 4 2 4 . Matter Fused 57 | . 2 4 . . . . . 2 2 13 9 2 . . . 1 12 2 2 6 . Heat Flow Errors 29 | . 2 3 . . . . . 2 . . 5 2 1 . . 2 5 1 1 5 . Energy Discharges 34 | . 1 2 1 . 2 . . 2 1 3 3 1 1 3 2 4 3 2 2 1 . Parts Rejected 1 | . . . . . . . . . . . . 1 . . . . . . . . . Data Loss (minor) 31 | . 3 1 . . 2 . . 2 . 4 3 3 . 1 1 4 2 2 3 . . Data Loss (major) 4 | . . . . . . . . . 1 2 . . . . . . . . . 1 . Misfires 1 | . . . . . . . . . . 1 . . . . . . . . . . . Alerts 2 | . . . . . . . . . . . 2 . . . . . . . . . . Misdirections 31 | . . . . . . . . . 2 16 9 3 1 . . . . . . . . Targeting Errors 83 | . . 4 . . 2 1 . 5 11 13 16 6 . 2 . 6 5 . . 12 . Weapon Failures 15 | . 1 . . 1 . . . 1 . 1 1 5 . . 2 . . . . 3 . Overload Shots . | . . . . . . . . . . . . . . . . . . . . . . Overflow Damage 580 | . 4 . . . 9 . 123 48 . 10 127 . 6 106 36 19 . . . 81 11 Projectiles 377 | . . . . . 9 . 123 14 . 10 109 . . 57 36 19 . . . . . Explosions 199 | . . . . . . . . 34 . . 18 . 6 49 . . . . . 81 11 Melee 4 | . 4 . . . . . . . . . . . . . . . . . . . . Knockbacks . | . . . . . . . . . . . . . . . . . . . . . . Impact . | . . . . . . . . . . . . . . . . . . . . . . Kinetic . | . . . . . . . . . . . . . . . . . . . . . . Secondary . | . . . . . . . . . . . . . . . . . . . . . . Self-Inflicted Damage 318 | . 7 . . . . . . 117 . 4 58 . 6 . . . . . . 126 . Shots 8 | . . . . . . . . 3 . . 1 . 1 . . . . . . 3 . Rammed 7 | . 1 . 4 . . . . 1 . 1 . . . . . . . . . . . Targets Rammed 12 | . 1 . 4 . . . . 3 . 1 . . . . . . 1 . . 2 . Kicked 5 | . . . . . . . . 2 . . . . . . . . 1 . . 2 . Crushed . | . . . . . . . . . . . . . . . . . . . . . . Highest Temperature 284 | . 284 264 8 7 274 186 250 195 184 184 232 147 196 195 199 196 197 134 176 196 21 Average Temperature 75 | . 48 81 3 4 65 79 101 51 108 97 97 80 72 103 107 88 83 67 95 27 4 Received Heat Transfer 3792 | . 285 120 91 16 . 54 108 244 . 60 108 72 231 384 145 299 187 12 60 241 1075 Effects 2 | . 2 . . . . . . . . . . . . . . . . . . . . Interference 2 | . 2 . . . . . . . . . . . . . . . . . . . . Siege Activations . | . . . . . . . . . . . . . . . . . . . . . . Robots Corrupted 3 | . . . . . . . . 2 . . . . . . . . . . . 1 . Combat Hostiles 2 | . . . . . . . . 2 . . . . . . . . . . . . . Parts Fried 10 | . 2 . . . . . . 3 . . . . . . . . . . . 5 . Impact Corruptions 1 | . 1 . . . . . . . . . . . . . . . . . . . . Robots Melted 2 | . . . . . 1 . . . . . 1 . . . . . . . . . . Combat Hostiles 1 | . . . . . . . . . . . 1 . . . . . . . . . . Parts Melted 29 | . . . . . 2 1 9 . . 3 . . 2 . 1 4 2 1 4 . . Heat Transferred 16169 | . . . . . 1140 530 3520 620 400 1280 2000 . 1039 1760 480 1890 640 400 320 . 150 Parts Sabotaged 11 | . . . . . . . . . . . . . . . . . . . . . 11 Parts Stolen 4 | . . . . . . . . . . . 2 . . . 2 . . . . . . Parts Stripped . | . . . . . . . . . . . . . . . . . . . . . . Power Chain Reactions 5 | . . . . . . . . 2 . . . . . . . . . . . 3 . Missiles Intercepted . | . . . . . . . . . . . . . . . . . . . . . . Alert | -11 -10 -10 -9 -9 -9 -8 -8 -7 -7 -7 -7 -7 -7 -7 -6 -6 -6 -6 -6 -6 -5 ------- Run | Scr Mat Min Mat Min Exi Min Mat Fac Was Fac Low Low Zio Dee Pro Fac Ext Cet Arc Hub Fac Peak Influence 2411 | 5 402 327 315 187 . 174 685 2198 804 1239 . . . . . 1158 972 1004 492 2411 2392 Average Influence 598 | 1 230 167 164 143 . 94 382 959 798 919 . . . . . 436 777 800 360 959 1658 Maximum Alert Level 5 | . 2 1 1 . . . 2 5 3 4 . . . . . 4 3 3 2 5 5 Low Security (%) 26 | 100 36 67 75 100 . 100 8 . . . . . . . . 33 . . 9 11 . Level 1 21 | . 59 32 24 . . . 41 16 . . . . . . . 31 . . 57 11 . Level 2 13 | . 4 . . . . . 50 24 . 13 . . . . . 4 22 14 33 8 . Level 3 22 | . . . . . . . . 25 100 48 . . . . . 22 77 85 . 36 . Level 4 8 | . . . . . . . . 21 . 38 . . . . . 7 . . . 8 50 Level 5 4 | . . . . . . . . 12 . . . . . . . . . . . 24 . High Security 1 | . . . . . . . . . . . . . . . . . . . . . 49 Max Security . | . . . . . . . . . . . . . . . . . . . . . . Squads Dispatched 80 | . 4 . 4 . . . 4 19 . 6 . . . . . 14 3 . . 13 13 Investigation 20 | . 2 . 1 . . . 1 4 . 1 . . . . . 4 2 . . 3 2 Extermination 11 | . . . . . . . . 4 . 2 . . . . . 2 . . . 3 . Reinforcement 25 | . 2 . 3 . . . 3 8 . 2 . . . . . 4 . . . 1 2 Assault 20 | . . . . . . . . 3 . 1 . . . . . 1 1 . . 5 9 Garrison 4 | . . . . . . . . . . . . . . . . 3 . . . 1 . Intercept . | . . . . . . . . . . . . . . . . . . . . . . Construction Impeded 5 | . . . . . . . 1 2 . . . . . . . 1 . . . . 1 Haulers Reinforced 3 | . . . . . . . . 3 . . . . . . . . . . . . . Stealth | -11 -10 -10 -9 -9 -9 -8 -8 -7 -7 -7 -7 -7 -7 -7 -6 -6 -6 -6 -6 -6 -5 --------- Run | Scr Mat Min Mat Min Exi Min Mat Fac Was Fac Low Low Zio Dee Pro Fac Ext Cet Arc Hub Fac Distress Signals 16 | . 1 . 2 . . . 3 1 . . . . . . . 2 . 2 . 4 1 Communications Jammed . | . . . . . . . . . . . . . . . . . . . . . . Distress Signals . | . . . . . . . . . . . . . . . . . . . . . . Times Spotted 715 | . 38 19 32 5 11 7 46 98 9 23 19 4 38 26 19 59 41 24 23 86 88 Peak Tracking Total 19 | . 8 5 3 3 9 3 4 6 6 6 9 3 12 6 4 10 8 6 1 8 19 Tactical Retreats 62 | . 2 2 4 . 3 . 2 13 4 2 1 . 3 1 . 7 2 1 . 5 10 Traps | -11 -10 -10 -9 -9 -9 -8 -8 -7 -7 -7 -7 -7 -7 -7 -6 -6 -6 -6 -6 -6 -5 ------- Run | Scr Mat Min Mat Min Exi Min Mat Fac Was Fac Low Low Zio Dee Pro Fac Ext Cet Arc Hub Fac Traps Triggered 16 | . 5 . 1 . . . 1 5 . 1 . . . . . 1 1 . . 1 . Indirectly . | . . . . . . . . . . . . . . . . . . . . . . Trap Hack Attempts . | . . . . . . . . . . . . . . . . . . . . . . Triggered . | . . . . . . . . . . . . . . . . . . . . . . Disarmed 1 | . . . 1 . . . . . . . . . . . . . . . . . . Reprogrammed . | . . . . . . . . . . . . . . . . . . . . . . Reused 11 | . . . . . 1 . 1 9 . . . . . . . . . . . . . Traps Reconfigurated 36 | . . . . . . . 10 26 . . . . . . . . . . . . . Traps Extracted . | . . . . . . . . . . . . . . . . . . . . . . Installed 2 | . . . . . 2 . . . . . . . . . . . . . . . . Triggered 12 | . . . . . . . 1 9 . . . 2 . . . . . . . . . Machines | -11 -10 -10 -9 -9 -9 -8 -8 -7 -7 -7 -7 -7 -7 -7 -6 -6 -6 -6 -6 -6 -5 ---------- Run | Scr Mat Min Mat Min Exi Min Mat Fac Was Fac Low Low Zio Dee Pro Fac Ext Cet Arc Hub Fac Machines Disabled 89 | . 1 1 1 . 3 2 2 14 . . 1 . 3 2 1 6 4 3 . 34 11 Max in Single Turn 15 | . 1 1 1 . 2 1 1 3 . . 1 . 2 1 1 4 1 . . 15 7 Garrison Access 4 | . . . . . . . . 1 . . . . . . . 1 . . . 2 . Network Hub 4 | . . . . . . . . . . . . . . . . . . . . 4 . Machines Sabotaged . | . . . . . . . . . . . . . . . . . . . . . . Garrisons Compromised . | . . . . . . . . . . . . . . . . . . . . . . Overloaded Fab Kills . | . . . . . . . . . . . . . . . . . . . . . . Fab Network Shutdowns 2 | . . . . . . . . 1 . 1 . . . . . . . . . . . Hacking | -11 -10 -10 -9 -9 -9 -8 -8 -7 -7 -7 -7 -7 -7 -7 -6 -6 -6 -6 -6 -6 -5 --------- Run | Scr Mat Min Mat Min Exi Min Mat Fac Was Fac Low Low Zio Dee Pro Fac Ext Cet Arc Hub Fac Machines Accessed 89 | . 6 . 8 . 1 . 11 12 . 7 1 . . . . 9 12 4 1 15 2 Terminals 57 | . 5 . 6 . . . 8 3 . 3 . . . . . 4 10 4 . 13 1 Fabricators 8 | . . . . . . . . 2 . 3 . . . . . 2 . . . . 1 Repair Stations 2 | . . . 1 . . . 1 . . . . . . . . . . . . . . Recycling Units 7 | . 1 . . . . . 1 2 . . . . . . . 1 2 . . . . Scanalyzers 7 | . . . 1 . . . 1 3 . 1 . . . . . 1 . . . . . Garrison Access 5 | . . . . . . . . 2 . . . . . . . 1 . . . 2 . Total Hacks 331 | . 28 . 30 . 1 . 53 30 . 15 3 . . . . 33 39 9 25 54 11 Successful 204 | . 16 . 19 . 1 . 39 13 . 7 3 . . . . 17 23 6 25 29 6 Failed 127 | . 12 . 11 . . . 14 17 . 8 . . . . . 16 16 3 . 25 5 Catastrophic 24 | . 1 . . . . . . 6 . 3 . . . . . 4 4 . . 6 . Database Lockouts . | . . . . . . . . . . . . . . . . . . . . . . Manual 159 | . 18 . 12 . 1 . 30 5 . 5 . . 5 . 1 20 22 5 . 25 10 Terminals 224 | . 26 . 26 . . . 38 7 . 7 . . . . . 20 35 9 . 49 7 Fabricators 21 | . . . . . . . . 5 . 6 . . . . . 6 . . . . 4 Repair Stations 4 | . . . 2 . . . 2 . . . . . . . . . . . . . . Recycling Units 20 | . 2 . . . . . 3 6 . . . . . . . 5 4 . . . . Scanalyzers 22 | . . . 2 . . . 10 7 . 2 . . . . . 1 . . . . . Garrison Access 11 | . . . . . . . . 5 . . . . . . . 1 . . . 5 . Terminal Hacks 111 | . 9 . 12 . 1 . 17 . . . 3 . . . . 6 13 4 25 18 3 Record 31 | . . . . . . . . . . . 3 . . . . . . 3 25 . . Part Schematic 6 | . . . 1 . . . 1 . . . . . . . . . 1 . . 3 . Robot Schematic 2 | . . . . . . . 1 . . . . . . . . . . . . 1 . Robot Analysis 9 | . 3 . . . . . 1 . . . . . . . . 2 . . . 2 1 Prototype ID Bank 10 | . 3 . 3 . . . 2 . . . . . . . . 1 . . . 1 . Open Door 4 | . . . . . . . . . . . . . . . . 1 2 1 . . . Level Access Points 3 | . . . 1 . . . 1 . . . . . . . . . 1 . . . . Branch Access Points 3 | . 1 . . . . . 1 . . . . . . . . . 1 . . . . Terminal Index 5 | . . . . . . . 1 . . . . . . . . 1 1 . . 1 1 Garrison Index 1 | . . . . . . . . . . . . . . . . . . . . 1 . Alert Level 7 | . 1 . . . . . 2 . . . . . . . . . 2 . . 2 . Unreport Threat 6 | . . . 1 . . . 1 . . . . . . . . . 2 . . 2 . Locate Traps 10 | . . . 2 . . . 4 . . . . . . . . . 2 . . 2 . Disarm Traps 1 | . . . 1 . . . . . . . . . . . . . . . . . . Recall Assault 1 | . . . . . . . . . . . . . . . . . . . . 1 . Hauler Manifests 4 | . . . 1 . . . 1 . . . . . . . . 1 . . . 1 . Registered Components 1 | . . . . . . . 1 . . . . . . . . . . . . . . Registered Prototypes 1 | . . . 1 . . . . . . . . . . . . . . . . . . Zone Layout 5 | . 1 . 1 . . . . . . . . . . . . . 1 . . 1 1 EX-Prototype ID Bank 1 | . . . . . 1 . . . . . . . . . . . . . . . . Fabricator Hacks 8 | . . . . . . . . 3 . 4 . . . . . 1 . . . . . Load Schematic 5 | . . . . . . . . 2 . 2 . . . . . 1 . . . . . Build 3 | . . . . . . . . 1 . 2 . . . . . . . . . . . Repair Station Hacks 4 | . . . 2 . . . 2 . . . . . . . . . . . . . . Scan Component 2 | . . . 1 . . . 1 . . . . . . . . . . . . . . Repair 2 | . . . 1 . . . 1 . . . . . . . . . . . . . . Recycling Unit Hacks 7 | . 1 . . . . . 1 3 . . . . . . . 1 1 . . . . Report Inventory 4 | . . . . . . . . 2 . . . . . . . 1 1 . . . . Retrieve Matter 1 | . . . . . . . . 1 . . . . . . . . . . . . . Retrieve Components 2 | . 1 . . . . . 1 . . . . . . . . . . . . . . Scanalyzer 19 | . . . 2 . . . 10 5 . 2 . . . . . . . . . . . Insert Component 7 | . . . 1 . . . 2 3 . 1 . . . . . . . . . . . Analyze 12 | . . . 1 . . . 8 2 . 1 . . . . . . . . . . . Garrison Access Hacks 2 | . . . . . . . . 1 . . . . . . . 1 . . . . . Seal Access 2 | . . . . . . . . 1 . . . . . . . 1 . . . . . Unauthorized Hacks 53 | . 6 . 3 . . . 9 1 . 1 . . . . . 8 9 2 . 11 3 Terminals 43 | . 5 . 3 . . . 8 . . 1 . . . . . 5 7 2 . 9 3 Track 9 | . . . 1 . . . 2 . . . . . . . . 1 1 . . 3 1 Botnet 29 | . 4 . 2 . . . 5 . . 1 . . . . . 3 6 2 . 5 1 Operators 5 | . 1 . . . . . 1 . . . . . . . . 1 . . . 1 1 Fabricators 1 | . . . . . . . . . . . . . . . . 1 . . . . . Download 1 | . . . . . . . . . . . . . . . . 1 . . . . . Repair Stations . | . . . . . . . . . . . . . . . . . . . . . . Recycling Units 7 | . 1 . . . . . 1 1 . . . . . . . 2 2 . . . . Monitor 1 | . . . . . . . . . . . . . . . . 1 . . . . . Reject 3 | . . . . . . . . 1 . . . . . . . . 2 . . . . Mask 3 | . 1 . . . . . 1 . . . . . . . . 1 . . . . . Scanalyzers . | . . . . . . . . . . . . . . . . . . . . . . Garrison Access 2 | . . . . . . . . . . . . . . . . . . . . 2 . Jam 2 | . . . . . . . . . . . . . . . . . . . . 2 . Data Cores Recovered 5 | . . . . . . . 1 . . . . . . . . . 1 . . 2 1 Used 1 | . . . . . . . 1 . . . . . . . . . . . . . . Hacking Detections 76 | . 5 . 7 . . . 10 11 . 7 . . . . . 6 12 2 . 14 2 Full Trace Events 13 | . . . 1 . . . 1 4 . . . . . . . 3 1 . . 1 2 Feedback Events 1 | . . . . . . . . 1 . . . . . . . . . . . . . Corruption 1 | . . . . . . . . 1 . . . . . . . . . . . . . Feedback Blocked . | . . . . . . . . . . . . . . . . . . . . . . Robot Schematics Acquired 2 | . . . . . . . 1 . . . . . . . . . . . . 1 . Robots Built 2 | . . . . . . . . 1 . 1 . . . . . . . . . . . Matter 438 | . . . . . . . . 219 . 219 . . . . . . . . . . . Time 232 | . . . . . . . . 116 . 116 . . . . . . . . . . . Total Robot Build Rating 6 | . . . . . . . . 3 . 3 . . . . . . . . . . . Part Schematics Acquired 13 | . . . 2 . . . 3 2 . 1 . . . . . 1 1 . . 3 . Parts Built . | . . . . . . . . . . . . . . . . . . . . . . Matter . | . . . . . . . . . . . . . . . . . . . . . . Time . | . . . . . . . . . . . . . . . . . . . . . . Total Part Build Rating . | . . . . . . . . . . . . . . . . . . . . . . Parts Repaired 2 | . . . 1 . . . 1 . . . . . . . . . . . . . . Time 45 | . . . 26 . . . 19 . . . . . . . . . . . . . . Parts Recycled . | . . . . . . . . . . . . . . . . . . . . . . Recycled Matter . | . . . . . . . . . . . . . . . . . . . . . . Retrieved Matter . | . . . . . . . . . . . . . . . . . . . . . . Retrieved Components 19 | . 10 . . . . . 9 . . . . . . . . . . . . . . Parts Scanalyzed 7 | . . . 1 . . . 2 3 . 1 . . . . . . . . . . . Part Schematics Acquired 6 | . . . 1 . . . 2 2 . 1 . . . . . . . . . . . Parts Damaged . | . . . . . . . . . . . . . . . . . . . . . . Bothacking | -11 -10 -10 -9 -9 -9 -8 -8 -7 -7 -7 -7 -7 -7 -7 -6 -6 -6 -6 -6 -6 -5 ------------ Run | Scr Mat Min Mat Min Exi Min Mat Fac Was Fac Low Low Zio Dee Pro Fac Ext Cet Arc Hub Fac Used RIF Installer . | . . . . . . . . . . . . . . . . . . . . . . Robots Hacked . | . . . . . . . . . . . . . . . . . . . . . . Non-combat . | . . . . . . . . . . . . . . . . . . . . . . Combat . | . . . . . . . . . . . . . . . . . . . . . . Robot Hacks Applied . | . . . . . . . . . . . . . . . . . . . . . . Relay Couplers Released 1 | . . . . . . . . 1 . . . . . . . . . . . . . Programmers 1 | . . . . . . . . 1 . . . . . . . . . . . . . Robots Rewired 15 | . . . . . . . . . . . 2 . . . . . 13 . . . . Allies Hacked . | . . . . . . . . . . . . . . . . . . . . . . Hacks Repelled . | . . . . . . . . . . . . . . . . . . . . . . Allies | -11 -10 -10 -9 -9 -9 -8 -8 -7 -7 -7 -7 -7 -7 -7 -6 -6 -6 -6 -6 -6 -5 -------- Run | Scr Mat Min Mat Min Exi Min Mat Fac Was Fac Low Low Zio Dee Pro Fac Ext Cet Arc Hub Fac Total Allies 22 | . . . . . . . . 1 . 1 2 . 4 . . . 14 . . . . Largest Group 8 | . . . . . . . . 1 . 1 2 2 4 . . . 8 6 1 . . Highest-Rated Group 300 | . . . . . . . . 26 . 26 64 64 103 . . . 300 300 156 . . Highest-Rated Ally 156 | . . . . . . . . 26 . 26 32 32 31 . . . 156 156 156 . . Total Orders 9 | . . . . . . . . 2 . . . . . . . 2 . 5 . . . STAY 1 | . . . . . . . . . . . . . . . . . . 1 . . . GOTO 2 | . . . . . . . . 1 . . . . . . . . . 1 . . . ROAM 3 | . . . . . . . . . . . . . . . . . . 3 . . . FOLLOW 1 | . . . . . . . . 1 . . . . . . . . . . . . . EXPLORE 2 | . . . . . . . . . . . . . . . . 2 . . . . . Ally Attacks 117 | . . . . . . . . . . . 24 2 . . . . 31 58 2 . . Total Damage 2663 | . . . . . . . . . . . 622 66 . . . . 586 1327 62 . . Kills 20 | . . . . . . . . . . . 4 2 . . . . 2 12 . . . Allies Corrupted 1 | . . . . . . . . . . . . . . . . . . 1 . . . Allies Melted . | . . . . . . . . . . . . . . . . . . . . . . Fabricated Assembled 1 | . . . . . . . . . . . . . . 1 . . . . . . . Intel | -11 -10 -10 -9 -9 -9 -8 -8 -7 -7 -7 -7 -7 -7 -7 -6 -6 -6 -6 -6 -6 -5 ------- Run | Scr Mat Min Mat Min Exi Min Mat Fac Was Fac Low Low Zio Dee Pro Fac Ext Cet Arc Hub Fac Robot Analysis Total 9 | . 3 . . . . . 1 . . . . . . . . 2 . . . 2 1 Derelict Logs Recovered 6 | . . 2 . . . . . . . . 1 1 2 . . . . . . . . Drone Launches 2 | . . . . . . . . . . . . . . . . 2 . . . . . Drone Recoveries . | . . . . . . . . . . . . . . . . . . . . . . Exploration | -11 -10 -10 -9 -9 -9 -8 -8 -7 -7 -7 -7 -7 -7 -7 -6 -6 -6 -6 -6 -6 -5 ------------- Run | Scr Mat Min Mat Min Exi Min Mat Fac Was Fac Low Low Zio Dee Pro Fac Ext Cet Arc Hub Fac Turns Passed 24647 | 78 1362 1024 2157 224 1478 617 1145 2612 196 805 681 216 1984 2334 581 1524 1454 589 882 2076 628 Spaces Moved 16854 | 61 1128 553 1113 114 836 530 847 2009 127 671 532 158 1709 1577 330 1060 983 436 407 1362 311 Core 19 | 1 . . . . 18 . . . . . . . . . . . . . . . . Treads 2243 | . . 482 1113 114 534 . . . . . . . . . . . . . . . . Legs 13333 | . . . . . 284 530 847 2009 127 671 532 158 1709 1577 330 1060 983 436 407 1362 311 Wheels 1259 | 60 1128 71 . . . . . . . . . . . . . . . . . . . Hover . | . . . . . . . . . . . . . . . . . . . . . . Flight . | . . . . . . . . . . . . . . . . . . . . . . Fastest Speed 50 | 50 90 90 160 160 110 100 100 100 105 105 105 105 105 100 100 100 100 100 105 95 93 Average Speed 110 | 99 91 151 160 160 148 100 100 103 105 105 105 105 105 102 104 102 100 101 105 102 95 Slowest Speed 300 | 100 100 160 160 160 300 110 100 105 105 105 105 105 105 105 150 105 100 136 105 129 129 Overloaded Moves . | . . . . . . . . . . . . . . . . . . . . . . Propulsion Burnouts . | . . . . . . . . . . . . . . . . . . . . . . Robots Hopped . | . . . . . . . . . . . . . . . . . . . . . . Cave-ins Triggered . | . . . . . . . . . . . . . . . . . . . . . . Exploration Rate (%) 67 | 4 99 93 78 24 76 98 72 59 92 22 79 35 90 93 54 40 83 83 98 98 12 Regions Visited 21 Branch Regions 13 Pre-discovered Areas 5 | . . 1 . . . . . . . . . . 4 . . . . . . . . Known Exits Taken 13 | . 1 1 . . . 1 1 . . 1 1 1 1 1 1 1 1 . . 1 . Unknown Exits Taken 6 | 1 . . 1 1 1 . . . . . . . . . . . . 1 1 . . Scrap Searched 11 | . . 3 . . . 3 . . . . 2 . 3 . . . . . . . . Spaces Dug 1 | . . . . . . . . . . . . . . 1 . . . . . . . Terrain Destroyed 1095 | . . . . . 14 20 24 110 1 1 48 . . 1 18 68 11 7 . 699 73 Melee 1 | . . . . . . . . . . . . . . 1 . . . . . . . Projectile 175 | . . . . . . 13 24 22 1 1 1 . . . 18 5 11 7 . 53 19 AOE 919 | . . . . . 14 7 . 88 . . 47 . . . . 63 . . . 646 54 Actions | -11 -10 -10 -9 -9 -9 -8 -8 -7 -7 -7 -7 -7 -7 -7 -6 -6 -6 -6 -6 -6 -5 --------- Run | Scr Mat Min Mat Min Exi Min Mat Fac Was Fac Low Low Zio Dee Pro Fac Ext Cet Arc Hub Fac Total 21078 | 71 1326 653 1372 134 978 589 1066 2359 163 738 622 188 1823 2146 490 1350 1342 551 816 1805 496 Wait 1585 | . 72 3 109 6 31 25 61 79 11 11 9 3 18 277 69 91 112 43 351 177 27 Move 16834 | 60 1127 552 1112 113 835 529 846 2009 126 670 531 157 1708 1576 329 1059 982 435 406 1361 311 Hop . | . . . . . . . . . . . . . . . . . . . . . . Pick Up 46 | 2 . 6 1 . 10 1 6 5 . 3 1 . 1 5 . 1 . 1 1 2 . Fast Attach 146 | 7 9 2 18 . 10 1 2 5 . . 1 1 2 27 4 9 13 7 2 19 7 Attach 14 | . . 3 . . . 1 2 2 . 1 . . . 2 . 1 . . . . 2 Detach 6 | . . . . . . . . 1 . . . . . 4 . 1 . . . . . Swap 43 | . 3 2 10 . 3 1 . 7 1 2 . . 2 8 1 . . . 1 1 1 Drop 178 | . 9 5 22 . 21 1 5 11 1 3 . . 3 43 2 10 10 8 3 18 3 Fire 1415 | 2 78 56 66 11 65 24 92 163 24 36 40 16 68 66 56 125 88 30 39 157 113 Melee 60 | . . . . . . . . . . . . . 1 59 . . . . . . . Ram 1 | . 1 . . . . . . . . . . . . . . . . . . . . Kick 7 | . . . . . . . . 3 . 1 . . . . . . 1 . . 2 . Crush 4 | . . . 4 . . . . . . . . . . . . . . . . . . Escape Stasis 5 | . . . . . . . . 5 . . . . . . . . . . . . . Rewire 111 | . . . . . . . . . . . 23 . . . . . 88 . . . . Trap 2 | . . . . . 2 . . . . . . . . . . . . . . . . Miscellaneous 621 | . 27 24 30 4 1 6 52 69 . 11 17 11 20 79 29 53 48 27 13 68 32 Route ------- -11/Scrapyard -10/Materials (discovered 5 exits: *Mat x3 / *Min x2) -10/Mines -9/Materials (discovered 5 exits: *Mat x3 / [*Min x2]) -9/Mines -9/Exiles -8/Mines (discovered 2 exits: *Mat x2) -8/Materials (discovered 3 exits: *Fac x3) -7/Factory (discovered 3 exits: *Fac x2 / *Low) -7/Waste -7/Factory (discovered 2 exits: *Fac / *Low) -7/Lower Caves -7/Lower Caves -7/Zion (discovered 2 exits: *Dee / *Pro) -7/Deep Caves -6/Proximity Caves -6/Factory (discovered 4 exits: *Fac / [*Low] / *Ext x2) -6/Extension (discovered 3 exits: *Fac x2 / *Cet) -6/Cetus (discovered 2 exits: *Fac / *Arc) -6/Archives (discovered 3 exits: *Fac / *Hub x2) -6/Hub_04(d) (discovered 4 exits: *Fac x4) -5/Factory History --------- Turn | Location | Event 4 | -11/Scrapyard | Upgraded with Propulsion slot (x1) 4 | -11/Scrapyard | Upgraded with Utility slot (x1) 4 | -11/Scrapyard | Upgraded with Weapon slot (x1) 17 | -11/Scrapyard | Discovered new exit (range 16) 79 | -11/Scrapyard | Entered Materials 239 | -10/Materials | Discovered new exit (range 12) 336 | -10/Materials | Build established: Mutant 460 | -10/Materials | Discovered new exit (range 4) 550 | -10/Materials | Discovered new exit (range 6) 625 | -10/Materials | Reached level 2 627 | -10/Materials | Upgraded with Utility slot (x2) 691 | -10/Materials | Identified exit to Mines 695 | -10/Materials | Identified exit to Materials 737 | -10/Materials | Core integrity fell below 50% 1044 | -10/Materials | Discovered exit to Materials (range 8) 1211 | -10/Materials | Reached level 3 1254 | -10/Materials | Upgraded with Utility slot (x1) 1441 | -10/Materials | Entered Mines 1738 | -10/Mines | Reached level 4 1786 | -10/Mines | Learned location of Zion (-7) 1791 | -10/Mines | Upgraded with Propulsion slot (x1) 1791 | -10/Mines | Upgraded with Weapon slot (x1) 1830 | -10/Mines | Learned 2 Materials zone layouts 1956 | -10/Mines | Found a hidden stash of uninstalled traps 2097 | -10/Mines | Build established: Gunner 2433 | -10/Mines | Discovered exit to Materials (range 12) 2465 | -10/Mines | Entered Materials 2466 | -9/Materials | Identified exit to Materials 2466 | -9/Materials | Core integrity fell below 50% 2467 | -9/Materials | Reached level 5 2496 | -9/Materials | Build established: Mutant 2560 | -9/Materials | Reached level 6 2587 | -9/Materials | Upgraded with Utility slot (x1) 2715 | -9/Materials | Discovered new exit (range 17) 3322 | -9/Materials | Repaired Grenade Launcher 3351 | -9/Materials | Discovered exit to Materials (range 3) 3499 | -9/Materials | Reached level 7 3514 | -9/Materials | Upgraded with Utility slot (x1) 3905 | -9/Materials | Discovered exit to Materials (range 8) 4034 | -9/Materials | Discovered new exit (range 9) 4196 | -9/Materials | Build established: Scavenger-Mutant 4622 | -9/Materials | Entered Mines 4624 | -9/Mines | Reached level 8 4838 | -9/Mines | Deemed a non-threat by the Exiles lab entrance 4840 | -9/Mines | Discovered new exit (range 5) 4846 | -9/Mines | Entered Exiles 4867 | -9/Exiles | Discovered new exit (range 15) 4987 | -9/Exiles | Met 8R-AWN 5013 | -9/Exiles | Met EX-HEX 5064 | -9/Exiles | Met EX-BIN 5083 | -9/Exiles | Aligned with FarCom system 5085 | -9/Exiles | Given EX-Vault access code 5123 | -9/Exiles | Opened EX-Vault 5135 | -9/Exiles | Found Gui. Plasma Cannon 5171 | -9/Exiles | Warned to stay clear of 0b10 Research branches 5264 | -9/Exiles | Met EX-DEC 5306 | -9/Exiles | Visited The Gauntlet 5756 | -9/Exiles | Attacked by the Exiles 5909 | -9/Exiles | Destroyed 8R-AWN 5917 | -9/Exiles | Found Prototype Device 5931 | -9/Exiles | Found Prototype Ballistic Gun 5931 | -9/Exiles | Identified 8R-AWN's Boregun 5933 | -9/Exiles | Identified AS-neutralizer No. 17b 5945 | -9/Exiles | Found 8R-AWN's Boregun 5949 | -9/Exiles | Found Prototype Processor 5949 | -9/Exiles | Identified Exp. Targeting Computer 6206 | -9/Exiles | Found Potential Leg 6209 | -9/Exiles | Found Potential Leg 6215 | -9/Exiles | Found Trap Reconfigurator 6324 | -9/Exiles | Stole three prototypes: Potential Leg, Gui. Plasma Cannon, Trap Reconfigurator 6324 | -9/Exiles | Entered Mines 6326 | -8/Mines | Reached level 9 6326 | -8/Mines | Upgraded with Propulsion slot (x1) 6361 | -8/Mines | Core integrity fell below 20% 6374 | -8/Mines | Upgraded with Power slot (x1) 6738 | -8/Mines | Discovered exit to Materials (range 15) 6891 | -8/Mines | Discovered exit to Materials (range 14) 6941 | -8/Mines | Entered Materials 6942 | -8/Materials | Core integrity fell below 50% 6943 | -8/Materials | Reached level 10 7026 | -8/Materials | Reached level 11 7110 | -8/Materials | Upgraded with Utility slot (x1) 7406 | -8/Materials | Identified exit to Factory 7445 | -8/Materials | Reached level 12 7457 | -8/Materials | Upgraded with Utility slot (x1) 7647 | -8/Materials | Repaired Reactive Plating 8086 | -8/Materials | Entered Factory 8088 | -7/Factory | Reached level 13 8200 | -7/Factory | Build established: Scavenger-Tank 8276 | -7/Factory | Discovered new exit (range 9) 8298 | -7/Factory | Found Powered Armor 8362 | -7/Factory | Reached level 14 8366 | -7/Factory | Upgraded with Utility slot (x1) 8789 | -7/Factory | Reached level 15 8791 | -7/Factory | Upgraded with Weapon slot (x1) 9009 | -7/Factory | Discovered new exit (range 17) 9686 | -7/Factory | First assault squad dispatched 9803 | -7/Factory | Reached level 16 9847 | -7/Factory | Destroyed 8 combat bots 9872 | -7/Factory | Discovered new exit (range 5) 10049 | -7/Factory | Build established: Scavenger-Mutant 10336 | -7/Factory | Fabricated O-24 Administrator (x1) 10379 | -7/Factory | Local fabrication network quarantined 10698 | -7/Factory | Sucked down chute 10698 | -7/Factory | Entered Waste 10713 | -7/Waste | EMP discharged 10713 | -7/Waste | System corruption reached 10% 10735 | -7/Waste | Spotted C-40 Crusher 10736 | -7/Waste | Spotted C-40 Crusher 10753 | -7/Waste | Spotted C-40 Crusher 10753 | -7/Waste | Spotted C-40 Crusher 10754 | -7/Waste | Spotted C-40 Crusher 10795 | -7/Waste | Destroyed C-40 Crusher 10813 | -7/Waste | EMP discharged 10821 | -7/Waste | Spotted C-40 Crusher 10874 | -7/Waste | Discovered new exit (range 18) 10894 | -7/Waste | Entered Factory 10928 | -7/Factory | Reached level 17 10929 | -7/Factory | Upgraded with Utility slot (x1) 11178 | -7/Factory | Fabricated O-24 Administrator? 11387 | -7/Factory | Local fabrication network quarantined 11416 | -7/Factory | Discovered new exit (range 9) 11424 | -7/Factory | Identified exit to Factory 11685 | -7/Factory | Discovered new exit (range 9) 11693 | -7/Factory | Identified exit to Lower Caves 11694 | -7/Factory | First assault squad dispatched 11699 | -7/Factory | Entered Lower Caves 11771 | -7/Lower Caves | Attracted the attention of an 0b10 outpost 11813 | -7/Lower Caves | Destroyed 7 combat bots 12077 | -7/Lower Caves | Spotted L0-EIX(f) 12079 | -7/Lower Caves | Encountered a Master Thief 12083 | -7/Lower Caves | Gui. Plasma Cannon stolen by Master Thief 12087 | -7/Lower Caves | Allies destroyed L0-EIX(f) 12102 | -7/Lower Caves | Spotted LQ-51N(f) 12103 | -7/Lower Caves | Encountered a Master Thief 12108 | -7/Lower Caves | Allies destroyed LQ-51N(f) 12109 | -7/Lower Caves | Spotted 66-NXD(f) 12110 | -7/Lower Caves | Encountered a Master Thief 12114 | -7/Lower Caves | Allies destroyed 66-NXD(f) 12199 | -7/Lower Caves | Spotted LO-VU2(f) 12200 | -7/Lower Caves | Encountered a Master Thief 12201 | -7/Lower Caves | Allies destroyed LO-VU2(f) 12271 | -7/Lower Caves | Spotted T9-EZE(f) 12271 | -7/Lower Caves | Spotted AE-9Z8(f) 12272 | -7/Lower Caves | Encountered a Master Thief 12272 | -7/Lower Caves | Encountered a Master Thief 12278 | -7/Lower Caves | Trap Reconfigurator stolen by Master Thief 12281 | -7/Lower Caves | Destroyed AE-9Z8(f) 12287 | -7/Lower Caves | Destroyed T9-EZE(f) 12302 | -7/Lower Caves | Identified exit to Lower Caves 12380 | -7/Lower Caves | Entered another Lower Caves area 12380 | -7/Lower Caves | Accompanied by 2 allies 12586 | -7/Lower Caves | Discovered new exit (range 9) 12595 | -7/Lower Caves | Identified exit to Zion 12596 | -7/Lower Caves | Entered Zion 12637 | -7/Zion | System corruption cleaned by Quarantine Array 12664 | -7/Zion | Given A8's code to call for help 12708 | -7/Zion | Learned Factory stockpile data 12716 | -7/Zion | Discovered new exit (range 12) 12728 | -7/Zion | Identified exit to Proximity Caves 12868 | -7/Zion | Learned location of Data Miner (-6) 13002 | -7/Zion | Learned location of Recycling (-7) 13025 | -7/Zion | Learned Factory emergency access door positions 13076 | -7/Zion | Gained Derelict followers 13197 | -7/Zion | Found Prototype Device 13198 | -7/Zion | Identified Mobile Refinery Mk. CCLXVII 13300 | -7/Zion | Learned location of Quarantine (-3) 13309 | -7/Zion | Received a visual enhancement algorithm 13351 | -7/Zion | Learned location of Armory (-4) 13433 | -7/Zion | Visited the Megawrench Repair Shop 13433 | -7/Zion | Megawrench repaired 2 parts 14134 | -7/Zion | Attacked by Zionites 14177 | -7/Zion | Destroyed 7 combat bots 14395 | -7/Zion | Destroyed Imprinter 14408 | -7/Zion | Extracted access codes from Imprinter's data core 14561 | -7/Zion | Opened final containment barrier to the Deep Caves 14577 | -7/Zion | Discovered new exit (range 3) 14577 | -7/Zion | Saw the warning signs outside the Deep Caves entrance 14579 | -7/Zion | Identified exit to Deep Caves 14580 | -7/Zion | Entered Deep Caves 14775 | -7/Deep Caves | Found Prototype Protection 14775 | -7/Deep Caves | Identified Zio. Weapon Casing 15061 | -7/Deep Caves | Found Zio. Weapon Casing 15098 | -7/Deep Caves | Found Prototype Protection 15098 | -7/Deep Caves | Identified Zio. Heavy Carapace 15513 | -7/Deep Caves | Discovered new exit (range 6) 15518 | -7/Deep Caves | Identified exit to Proximity Caves 15701 | -7/Deep Caves | Spotted as-30671 15701 | -7/Deep Caves | Spotted as-33983 15703 | -7/Deep Caves | Triggered Deep Caves wall 15703 | -7/Deep Caves | Reached level 18 15703 | -7/Deep Caves | Triggered Deep Caves wall 15703 | -7/Deep Caves | Spotted AS-53700 15703 | -7/Deep Caves | Spotted AS-89457 15723 | -7/Deep Caves | Core integrity fell below 50% 15746 | -7/Deep Caves | Destroyed as-33983 15749 | -7/Deep Caves | Core integrity fell below 20% 15760 | -7/Deep Caves | Exposed GOLEM chamber 15764 | -7/Deep Caves | Destroyed as-30671 15805 | -7/Deep Caves | Destroyed AS-53700 15815 | -7/Deep Caves | Destroyed AS-89457 15820 | -7/Deep Caves | Found Mobile Assembly Unit 16006 | -7/Deep Caves | Found GOLEM Unit 16364 | -7/Deep Caves | Found GOLEM Unit 16612 | -7/Deep Caves | Found Modified TNC 16914 | -7/Deep Caves | Entered Proximity Caves 16989 | -6/Proximity Caves | Spotted 6O-AKP(f) 16991 | -6/Proximity Caves | Encountered a Master Thief 16991 | -6/Proximity Caves | Spotted AG-VW1(f) 16992 | -6/Proximity Caves | Encountered a Master Thief 16996 | -6/Proximity Caves | Destroyed 6O-AKP(f) 16999 | -6/Proximity Caves | Destroyed AG-VW1(f) 17001 | -6/Proximity Caves | Spotted RJ-785(f) 17002 | -6/Proximity Caves | Encountered a Master Thief 17002 | -6/Proximity Caves | Spotted IX-DGQ(f) 17003 | -6/Proximity Caves | Encountered a Master Thief 17005 | -6/Proximity Caves | Potential Leg stolen by Master Thief 17010 | -6/Proximity Caves | Potential Leg stolen by Master Thief 17010 | -6/Proximity Caves | Destroyed RJ-785(f) 17013 | -6/Proximity Caves | Destroyed IX-DGQ(f) 17014 | -6/Proximity Caves | Spotted 8H-X86(f) 17016 | -6/Proximity Caves | Encountered a Master Thief 17025 | -6/Proximity Caves | Destroyed 8H-X86(f) 17026 | -6/Proximity Caves | Spotted OP-SAL(f) 17028 | -6/Proximity Caves | Encountered a Master Thief 17212 | -6/Proximity Caves | Destroyed OP-SAL(f) 17224 | -6/Proximity Caves | Attracted the attention of an 0b10 checkpoint 17287 | -6/Proximity Caves | Spotted B-75 Beast 17301 | -6/Proximity Caves | Destroyed B-75 Beast 17322 | -6/Proximity Caves | Destroyed 11 combat bots 17369 | -6/Proximity Caves | Reached level 19 17409 | -6/Proximity Caves | Acquired the password to a Derelict Tinkerer's latest research 17417 | -6/Proximity Caves | Found Prototype Special Weapon 17417 | -6/Proximity Caves | Identified Molecular Deconstructor 17419 | -6/Proximity Caves | Upgraded with Weapon slot (x1) 17495 | -6/Proximity Caves | Entered Factory 17496 | -6/Factory | Identified exit to Extension 17681 | -6/Factory | Discovered new exit (range 21) 17852 | -6/Factory | Spotted B-75 Beast 17880 | -6/Factory | Destroyed B-75 Beast 18149 | -6/Factory | Build established: Scavenger-Gunner 18175 | -6/Factory | Discovered new exit (range 12) 18472 | -6/Factory | Garrison activated, responded to threat 18479 | -6/Factory | Reached level 20 18634 | -6/Factory | Build established: Scavenger-Mutant 18639 | -6/Factory | Destroyed 21 combat bots 18895 | -6/Factory | First assault squad dispatched 19009 | -6/Factory | Discovered exit to Extension (range 5) 19019 | -6/Factory | Entered Extension 19028 | -6/Extension | Disrupted transfer network 19369 | -6/Extension | First assault squad dispatched 19409 | -6/Extension | Spotted B-75 Beast 19417 | -6/Extension | Reached level 21 19427 | -6/Extension | Spotted B-75 Beast 19448 | -6/Extension | Destroyed B-75 Beast 19511 | -6/Extension | Destroyed 11 combat bots 19566 | -6/Extension | Destroyed B-75 Beast 19621 | -6/Extension | Discovered new exit (range 3) 19731 | -6/Extension | Discovered new exit (range 18) 19732 | -6/Extension | Discovered new exit (range 17) 19804 | -6/Extension | Identified exit to Cetus 20183 | -6/Extension | Identified exit to Factory 20184 | -6/Extension | Rescued A7 20473 | -6/Extension | Entered Cetus 20473 | -6/Cetus | Accompanied by 6 allies 20478 | -6/Cetus | Acquired a Cetus Manufacturing Module code from A7 20491 | -6/Cetus | Spotted Cetus Guard 20491 | -6/Cetus | Spotted Cetus Guard 20495 | -6/Cetus | Allies destroyed Cetus Guard 20496 | -6/Cetus | Spotted Cetus Guard 20497 | -6/Cetus | Allies destroyed Cetus Guard 20498 | -6/Cetus | Spotted Cetus Guard 20501 | -6/Cetus | Allies destroyed Cetus Guard 20507 | -6/Cetus | Destroyed Cetus Guard 20567 | -6/Cetus | Cetus Manufacturing Module disabled 20597 | -6/Cetus | Failed to start Cetus Manufacturing Module 20606 | -6/Cetus | Escorted A7 to Cetus Mainframe 20716 | -6/Cetus | Found a strange terminal 20734 | -6/Cetus | Discovered new exit (range 18) 20756 | -6/Cetus | Spotted Cetus Guard 20756 | -6/Cetus | Spotted Cetus Guard 20757 | -6/Cetus | Destroyed Cetus Guard 20760 | -6/Cetus | Spotted Cetus Guard 20760 | -6/Cetus | Spotted Cetus Guard 20763 | -6/Cetus | Allies destroyed Cetus Guard 20764 | -6/Cetus | Destroyed Cetus Guard 20771 | -6/Cetus | Destroyed Cetus Guard 20779 | -6/Cetus | Discovered exit to Factory (range 17) 20800 | -6/Cetus | Met Revision 17 21062 | -6/Cetus | Entered Archives 21062 | -6/Archives | Accompanied by 1 ally 21067 | -6/Archives | Received a hacking code to weaken MAIN.C 21259 | -6/Archives | Unable to access archive contents 21269 | -6/Archives | Discovered new exit (range 17) 21274 | -6/Archives | Unable to access archive contents 21283 | -6/Archives | Discovered new exit (range 18) 21287 | -6/Archives | Unable to access archive contents 21297 | -6/Archives | Unable to access archive contents 21298 | -6/Archives | Discovered exit to Factory (range 18) 21368 | -6/Archives | Build established: Scavenger-Tank 21789 | -6/Archives | Build established: Scavenger-Gunner 21944 | -6/Archives | Entered Hub_04(d) 21946 | -6/Hub_04(d) | Reached level 22 21946 | -6/Hub_04(d) | Upgraded with Utility slot (x1) 22019 | -6/Hub_04(d) | Garrison activated, responded to threat 22072 | -6/Hub_04(d) | Discovered exit to Factory (range 11) 22074 | -6/Hub_04(d) | Spotted B-75 Beast 22091 | -6/Hub_04(d) | Destroyed B-75 Beast 22368 | -6/Hub_04(d) | Discovered exit to Factory (range 13) 22527 | -6/Hub_04(d) | Discovered exit to Factory (range 15) 22688 | -6/Hub_04(d) | Discovered exit to Factory (range 10) 22897 | -6/Hub_04(d) | Build established: Scavenger-Tank 22994 | -6/Hub_04(d) | First assault squad dispatched 23089 | -6/Hub_04(d) | Destroyed 8 combat bots 23488 | -6/Hub_04(d) | Network Hub disabled 23488 | -6/Hub_04(d) | Network Hub disabled 23502 | -6/Hub_04(d) | Spotted Lightning 23504 | -6/Hub_04(d) | Spotted Lightning 23517 | -6/Hub_04(d) | Spotted Lightning 23517 | -6/Hub_04(d) | Spotted Lightning 23517 | -6/Hub_04(d) | Spotted Lightning 23517 | -6/Hub_04(d) | Spotted Lightning 23518 | -6/Hub_04(d) | Destroyed Lightning 23518 | -6/Hub_04(d) | Destroyed Lightning 23518 | -6/Hub_04(d) | Destroyed Lightning 23522 | -6/Hub_04(d) | Destroyed Lightning 23546 | -6/Hub_04(d) | Destroyed Lightning 23546 | -6/Hub_04(d) | Destroyed Lightning 23575 | -6/Hub_04(d) | Found Prototype Device 23575 | -6/Hub_04(d) | Identified Exp. Phase Shifter 23614 | -6/Hub_04(d) | Found Prototype Device 23614 | -6/Hub_04(d) | Identified EM Dispersion Field 23628 | -6/Hub_04(d) | Found EM Dispersion Field 23668 | -6/Hub_04(d) | Found Prototype Energy Cannon 23668 | -6/Hub_04(d) | Identified EMDS 23767 | -6/Hub_04(d) | Spotted Lightning 23768 | -6/Hub_04(d) | Spotted Lightning 23772 | -6/Hub_04(d) | Spotted Lightning 23774 | -6/Hub_04(d) | Destroyed Lightning 23779 | -6/Hub_04(d) | Destroyed Lightning 23800 | -6/Hub_04(d) | Destroyed 11 combat bots 23811 | -6/Hub_04(d) | Spotted Lightning 23819 | -6/Hub_04(d) | Spotted Lightning 23820 | -6/Hub_04(d) | Spotted Lightning 23827 | -6/Hub_04(d) | Destroyed Lightning 23868 | -6/Hub_04(d) | Found Exp. Phase Shifter 23908 | -6/Hub_04(d) | Destroyed Lightning 23913 | -6/Hub_04(d) | Destroyed Lightning 23928 | -6/Hub_04(d) | Destroyed Lightning 23940 | -6/Hub_04(d) | Network Hub disabled 24000 | -6/Hub_04(d) | Network Hub disabled 24020 | -6/Hub_04(d) | Entered Factory 24022 | -5/Factory | Reached level 23 24320 | -5/Factory | First assault squad dispatched 24339 | -5/Factory | High security lockdown imminent 24419 | -5/Factory | High security lockdown engaged 24447 | -5/Factory | Core integrity fell below 50% 24516 | -5/Factory | Core integrity fell below 20% 24568 | -5/Factory | Reached level 24 24620 | -5/Factory | Destroyed 23 combat bots 24648 | -5/Factory | Destroyed by G-67 Veteran with Plasma Rifle Last Messages --------------- 24639_ G-67 Veteran unfolds itself. 24639_ B-60 Warrior unfolds itself. 24639_ G-50 Soldier unfolds itself. 24639_ I-47 Archangel unfolds itself. 24640_ Acquired Centrium Medium Armor Plating. 24641_ Critical hit. 24641_ Powered Armor destroyed. 24642_ Quantum Reactor blown off. 24642_ Centrium Medium Armor Plating blown off. 24642_ Exp. Heat Sink blown off. 24642_ E-15 Imp destroyed. 24643_ GOLEM Unit beginning Asb. Alloy Leg integration. 24643_ HV Slug penetrates L-41 Fighter. 24643_ HV Slug penetrates I-47 Archangel. 24645_ HV Slug penetrates G-50 Soldier. 24645_ G-50 Soldier suffers critical hit. 24645_ G-50 Soldier destroyed. 24645_ HV Slug penetrates Wall. 24646_ HV Slug penetrates L-41 Fighter. 24646_ HV Slug penetrates Wall. Map ----- +----------------------------------------------------+ | ?????????????????? %* ??? ?? # # | | ??????????????????# = #### #?? | + # | | ??????????????????# # # ### # ###### | | ??????????????????# " "# " "#" ?# ##???# | | ??????????????????# %!="" """"#### # ??# | | ??????????????????# %%%=" %* ## # ??# | | ??????????????????#!*[*!" ## # ?# | | ??????????????????#[=*%!" ## # ?# | | ??????????????????# [%=! ## # # | | ??????????????????#=[!!!% ## #= # | | ??????????????????#[[*%== ! ## # + | | ??????????????????# * ! ! / ]/*! + # # | | ??????????????????# %!! =!!!![! #### # [ ? | | ??????????????????# % = ! =*=/%//! #??# ###### | | ???????????#####??# ;!*!=%=*!= #??# | | ??????????? ?# ===*= */=! #??########## | | ??????????? # ggg=*![!=%[* #???????????? | | ??????????" " # =%***=;[%#########???????????? | | ??????????" S ; g^gg*^#[#???????????????????? | | ?????????"" # =[![*=###???????????????????? | | ?????????"" # *!*[%!#????????????????????? | | ??????? ?# !=%! #=#???????????????????? | | ????????""" " ""??# ==[=!###???????????????????? | | ??????????" """???# !b=%#####?????????????????? | | ??????????????????# %%!l%== #?????????????????? | | ??????????????????# !=!@b*= #?????????????????? | | ??????????????????# %gbl%[ +?????????????????? | | ??????????????????# g ! #?????????????????? | | ??????????????????# igg #?????????????????? | | ??????????????????########%= #?????????????????? | | ?????????????????????????#%*% #?????????????????? | | ?????????????????????????#= #?????????????????? | | ?????????????????????????? #?????????????????? | | ?????????????????????????? #?????????????????? | | ??????????????????????????% #?????????????????? | | ??????????????????????????== #?????????????????? | | ??????????????????????????%* #?????????????????? | | ??????????????????????????! #?????????????????? | | ?????????????????????????? #?????????????????? | | ?????????????????????????? #?????????????????? | | ??????????????????????????? #?????????????????? | | ??????????????????????????? ???????????????????? | | ?????????????????????????????????????????????????? | | ?????????????????????????????????????????????????? | | ?????????????????????????????????????????????????? | | ?????????????????????????????????????????????????? | | ?????????????????????????????????????????????????? | | ?????????????????????????????????????????????????? | | ?????????????????????????????????????????????????? | | ?????????????????????????????????????????????????? | +----------------------------------------------------+ Best States ------------- Heat Dissipation 120 Coolant Potential 100 Energy Generation 50 Energy Capacity 2310 Matter Stores 350 Matter Capacity 550 Sight Range 18 Robot Scan Range 12 Terrain Scan Range 16 Terrain Scan Density 85 Additional Mass Support 20 EM Shielding 2 Armor Coverage 1600 Resistance: KI 30 Resistance: TH 15 Resistance: EX 15 Resistance: EM 75 Resistance: I 15 Resistance: S 15 Resistance: P 15 Power Shielding 33 Utility Shielding 33 Weapon Shielding 100 Weapon Cycling 25 Phase Shifting 20 Evasion (%) 60 Targeting Accuracy 20 Core Analysis 8 Recoil Reduction 3 Salvage Targeting 2 Offensive Hacking 10 Defensive Hacking 12 Item Schematics ----------------- Trap Extractor | -9/Materials | Scanalyzed Med. Armor Plating | -9/Materials | Hacked Hvy. Particle Gun | -8/Materials | Scanalyzed Adv. EMP Blaster | -8/Materials | Scanalyzed Hacking Suite | -8/Materials | Hacked Powered Armor | -7/Factory | Scanalyzed Adv. Signal Interpreter | -7/Factory | Scanalyzed Kinecellerator | -7/Factory | Scanalyzed Adv. Energy Well | -6/Factory | Downloaded Force Field | -6/Extension | Hacked Adv. Focal Shield | -6/Hub_04(d) | Hacked Imp. Force Field | -6/Hub_04(d) | Hacked Cloaking Device | -6/Hub_04(d) | Hacked Robot Schematics ------------------ O-24 Administrator | -8/Materials | Hacked S-27 Virus | -6/Hub_04(d) | Hacked Fabricated ------------ O-24 Administrator | x1 | -7/Factory O-24 Administrator | x1 | -7/Factory Alien Tech Used ----------------- None Achievements -------------- Main Advantage Project G-00 Revising The Future Challenges ------------ None RPGLIKE | -11 -10 -10 -9 -9 -9 -8 -8 -7 -7 -7 -7 -7 -7 -7 -6 -6 -6 -6 -6 -6 -5 --------- Run | Scr Mat Min Mat Min Exi Min Mat Fac Was Fac Low Low Zio Dee Pro Fac Ext Cet Arc Hub Fac Levels Raised 23 | . 2 1 3 1 . 1 3 4 . 1 . . . 1 1 1 1 . . 1 2 XP Earned 37690 | 3000 3289 2325 4825 915 243 1650 4480 6089 104 506 452 224 152 617 1170 2304 1187 685 146 1557 1770 XP Spent 37300 | 2350 3410 1700 4520 . 695 1600 4900 4350 . 3425 . . . 1375 1400 275 700 . . 3675 2925 Upgrades 65 | 6 6 3 4 . 5 2 2 4 . 4 . . . 6 1 2 2 . . 2 16 Power Slot 1 | . . . . . . 1 . . . . . . . . . . . . . . . Propulsion Slot 3 | 1 . 1 . . . 1 . . . . . . . . . . . . . . . Utility Slot 11 | 1 3 . 2 . . . 2 1 . 1 . . . . . . . . . 1 . Weapon Slot 4 | 1 . 1 . . . . . 1 . . . . . . 1 . . . . . . Core Integrity 23 | . 2 . . . 1 . . . . . . . . 5 . . . . . . 15 Heat Dissipation 4 | . 1 . 1 . 2 . . . . . . . . . . . . . . . . Energy Generation 1 | . . . . . . . . . . . . . . . . . . . . . 1 Matter Storage 1 | . . . . . . . . . . . . . . . . . 1 . . . . Mass Support 1 | 1 . . . . . . . . . . . . . . . . . . . . . Inventory Capacity 4 | 2 . . 1 . . . . . . . . . . 1 . . . . . . . Sight Range 2 | . . 1 . . 1 . . . . . . . . . . . . . . . . Sensor Range 6 | . . . . . . . . . . 3 . . . . . 2 . . . 1 . KI Resistance % 1 | . . . . . 1 . . . . . . . . . . . . . . . . TH Resistance % 1 | . . . . . . . . 1 . . . . . . . . . . . . . KI Damage % 2 | . . . . . . . . 1 . . . . . . . . 1 . . . . Protomatter Created 7448 | . 231 128 268 26 7 46 411 1176 128 116 48 100 170 742 309 872 823 132 135 716 864 Integrity Restored 12267 | . 501 516 645 78 21 138 1108 1135 . 201 327 214 406 1682 545 997 910 531 242 1433 637 Core 8422 | . 409 516 645 78 21 138 743 685 . 78 197 105 336 1067 309 676 646 232 158 840 543 Parts 3845 | . 92 . . . . . 365 450 . 123 130 109 70 615 236 321 264 299 84 593 94 Protomatter Decayed 3474 | . 60 14 156 . . . 30 779 . 81 . 92 31 171 94 477 541 86 51 222 589 Game ------ Seed AlphaCoilLog Manual? 0 Play Time 06:37:39 Cumulative 83.7 hours Start 2020.07.17 @ 18:56:14 End 2020.07.19 @ 17:00:09 Sessions 5 Manual Loads 0 Difficulty Rogue Special Mode Winter2019/RPGLIKE Game No. 38 Rogue 38 Adventurer 0 Explorer 0 Win Type - Total 1 Types 0/0/0/1/0/0/0 Lore% 58 Gallery% 49 Achievement% 54 Wizard Run 0 Options --------- ASCII 0 Keyboard 0 Movement Numpad Keybinds 0 Fullscreen 1 Font 14/SmallcapsGlow Map View 84x54 Tactical HUD 1 Map Filters NONE Filters NONE Steam 1 RUN: 018cdb01-233f-455b-9185-c4c364a5891d